[Event "27th CRO-chT Women 2018"]
[Site "Biograd"]
[Date "2018.09.15"]
[Round "9.11"]
[White "Starcevic, Andrea"]
[Black "Muha, Magdalena"]
[Result "1-0"]
[ECO "D46"]
[WhiteElo "1893"]
[BlackElo "1839"]
[Annotator "NA"]
[PlyCount "81"]
[EventDate "2018.09.08"]
[EventType "team-tourn"]
[EventCountry "CRO"]
[SourceTitle "playchess.com"]
[Source "ChessBase"]
[SourceQuality "1"]
[TimeControl "40/5400+30:1800+30"]

1. c4 {[%emt 0:00:30]} c6 {[%emt 0:00:30]} 2. e3 {[%emt 0:00:00]} d5 {[%emt 0:00:00]} 3. Nc3 {[%emt 0:00:00]} Nf6 {[%emt 0:00:00]} 4. Nf3 {[%emt 0:00:30]} e6 {[%emt 0:03:30] LiveBook: 2142 Games} 5. d4 {[%emt 0:01:30]} Be7 {[%emt 0:00:30]} 6. Be2 {[%emt 0:01:30]} O-O {[%emt 0:02:30]} 7. O-O {[%emt 0:00:00]} Nbd7 {[%emt 0:01:30]} 8. a3 {[%emt 0:01:00]} dxc4 $11 {[%emt 0:02:30]} 9. Bxc4 {[%emt 0:01:30]} c5 {[%emt 0:02:30]} 10. dxc5 {[%emt 0:02:30]} Nxc5 {[%emt 0:01:30]} 11. Qc2 {[%emt 0:10:30]} a6 {[%emt 0:03:30]} 12. b4 {[%emt 0:05:30]} Ncd7 {[%emt 0:00:30]} 13. Bb2 {[%emt 0:01:30]} b5 {[%emt 0:00:30]} 14. Ba2 {[%emt 0:09:30]} Bb7 {[%emt 0:03:30]} 15. Qe2 {[%emt 0:04:30]} Qc7 {[%emt 0:07:30]} 16. Rac1 {[%emt 0:04:30]} Ng4 {[%emt 0:04:30]} 17. Nd5 {[%emt 0:14:30]} Qd6 {[%emt 0:00:30]} 18. Nxe7+ {[%emt 0:00:30]} Qxe7 {[%emt 0:00:00]} 19. h3 {[%emt 0:01:30]} Ngf6 {[%emt 0:01:00]} 20. Rc7 {[%emt 0:02:30]} Bd5 {[%emt 0:01:30]} 21. Bxf6 {[%emt 0:03:30]} gxf6 {[%emt 0:01:30]} 22. Bxd5 {[%emt 0:00:00]} exd5 {[%emt 0:00:00]} 23. Nd4 {[%emt 0:00:00]} Kh8 {[%emt 0:01:00]} 24. Qg4 {[%emt 0:03:30]} Rfd8 {[%emt 0:01:30]} 25. Nc6 {[%emt 0:01:30]} Qd6 {[%emt 0:01:30]} 26. Nxd8 {[%emt 0:00:30]} Rxd8 {[%emt 0:00:00]} 27. Rfc1 {[%emt 0:00:30]} Ne5 {[%emt 0:00:00]} 28. Qf5 {[%emt 0:01:30]} Kg7 {[%emt 0:03:30]} 29. Rc8 {[%emt 0:02:30]} Rd7 {[%emt 0:00:30]} 30. Qf4 {[%emt 0:02:30]} Rd8 {[%emt 0:03:30]} 31. Rxd8 {[%emt 0:02:30]} Qxd8 {[%emt 0:00:00]} 32. Rc5 {[%emt 0:02:30]} Ng6 {[%emt 0:06:00]} 33. Qd4 {[%emt 0:01:30]} Ne7 {[%emt 0:00:30]} 34. e4 {[%emt 0:00:30]} Qd6 {[%emt 0:01:30]} 35. exd5 {[%emt 0:00:00]} Ng6 {[%emt 0:01:30]} 36. Rc6 {[%emt 0:01:00]} Qe7 {[%emt 0:00:30]} 37. d6 {[%emt 0:00:30]} Qe1+ {[%emt 0:00:30]} 38. Kh2 {[%emt 0:00:30]} Ne5 {[%emt 0:00:30]} 39. Rc3 {[%emt 0:02:06]} h6 {[%emt 0:01:30]} 40. Rg3+ {[%emt 0:00:00]} Kh7 {[%emt 0:00:00]} 41. d7 {[%emt 0:01:24]} 1-0

[Event "27th CRO-chT Women 2018"]
[Site "Biograd"]
[Date "2018.09.15"]
[Round "9.12"]
[White "Koksa, Jelena"]
[Black "Tomulic, Vesna"]
[Result "1/2-1/2"]
[ECO "B42"]
[WhiteElo "1764"]
[BlackElo "1837"]
[Annotator "NA"]
[PlyCount "38"]
[EventDate "2018.09.08"]
[EventType "team-tourn"]
[EventCountry "CRO"]
[SourceTitle "playchess.com"]
[Source "ChessBase"]
[SourceQuality "1"]
[TimeControl "40/5400+30:1800+30"]

1. e4 {[%emt 0:00:30]} c5 {[%emt 0:00:30]} 2. Nf3 {[%emt 0:00:00]} e6 {[%emt 0:00:00]} 3. d4 {[%emt 0:00:00]} cxd4 {[%emt 0:00:00]} 4. Nxd4 {[%emt 0:00:00]} a6 {[%emt 0:00:30]} 5. Bd3 {[%emt 0:01:00]} Qc7 {[%emt 0:01:30]} 6. Qe2 $11 {[%emt 0:01:30] LiveBook: 65 Games} Nc6 {[%emt 0:01:30]} 7. Nxc6 {[%emt 0:02:30]} dxc6 {[%emt 0:00:30]} 8. O-O {[%emt 0:00:30]} Bd6 {[%emt 0:00:30]} 9. h3 {[%emt 0:00:30]} e5 {[%emt 0:04:30]} 10. c4 {[%emt 0:01:30]} Ne7 {[%emt 0:03:30]} 11. Be3 {[%emt 0:01:30]} Ng6 {[%emt 0:02:30]} 12. Nc3 {[%emt 0:03:30]} Qe7 {[%emt 0:03:30]} 13. Na4 {[%emt 0:04:30]} Be6 {[%emt 0:01:30]} 14. c5 {[%emt 0:04:30]} Bc7 {[%emt 0:00:30]} 15. Bc4 {[%emt 0:00:30]} O-O {[%emt 0:00:30]} 16. Rfd1 {[%emt 0:10:30]} Rad8 {[%emt 0:04:30]} 17. Bxe6 {[%emt 0:05:30]} Qxe6 {[%emt 0:00:30]} 18. Nc3 {[%emt 0:08:30]} Ba5 {[%emt 0:09:30]} 19. Rxd8 {[%emt 0:12:30]} Rxd8 {[%emt 0:00:30]} 1/2-1/2